{"text_format":"3","workbook":"xlsx","n_sheets":1,"sheets":["Pianificazione dei turni"],"not_rendered":{"defined_names":2},"read":"whole","date_system":"1900"}

{"sheet":"Pianificazione dei turni","index":0,"n_rows":59,"n_cols":13,"rows_kept":59,"merged":[[0,1,0,5],[1,2,1,4],[2,2,2,4],[2,10,2,12]]}
[null,"Pianificazione dei turni"]
[null,"Per la settimana di: "]
[null,"Reparto: "]
[]
[null,"LUNEDÌ","7.00","8.00","9.00","10.00","11.00","12.00","13.00","14.00","15.00","Malattia?","TOTALE"]
[null,"Katia F","manager","manager","manager","manager","manager","manager","manager","manager","manager",null,{"$f":"COUNTIF(Table1[[#This Row],[7.00]:[15.00]],\"*\")","v":9}]
[null,"Tommaso I",null,"cassa","cassa","cassa","cassa",{"$nulls":5},{"$f":"COUNTIF(Table1[[#This Row],[7.00]:[15.00]],\"*\")","v":4}]
[null,"Giacomo S",null,"front desk","front desk","front desk","front desk ","front desk","front desk","front desk",null,null,{"$f":"COUNTIF(Table1[[#This Row],[7.00]:[15.00]],\"*\")","v":7}]
[null,"Gianni M",null,"front desk","front desk","front desk","front desk ","front desk","front desk","front desk",null,null,{"$f":"COUNTIF(Table1[[#This Row],[7.00]:[15.00]],\"*\")","v":7}]
[null,"Sebastiano P",{"$nulls":9},"Malattia",{"$f":"COUNTIF(Table1[[#This Row],[7.00]:[15.00]],\"*\")","v":0}]
[null,"Teresa A",{"$nulls":5},"cassa","cassa","cassa","cassa",null,{"$f":"COUNTIF(Table1[[#This Row],[7.00]:[15.00]],\"*\")","v":4}]
[]
[null,"MARTEDÌ","7.00","8.00","9.00","10.00","11.00","12.00","13.00","14.00","15.00","Malattia?","TOTALE"]
[null,"Katia F","manager","manager","manager","manager","manager","manager","manager","manager","manager",null,{"$f":"COUNTIF(Table2[[#This Row],[7.00]:[15.00]],\"*\")","v":9}]
[null,"Tommaso I",null,"cassa","cassa","cassa","cassa",{"$nulls":5},{"$f":"COUNTIF(Table2[[#This Row],[7.00]:[15.00]],\"*\")","v":4}]
[null,"Giacomo S",null,"front desk","front desk","front desk","front desk ","front desk","front desk","front desk",null,null,{"$f":"COUNTIF(Table2[[#This Row],[7.00]:[15.00]],\"*\")","v":7}]
[null,"Gianni M",null,"front desk","front desk","front desk","front desk ","front desk","front desk","front desk",null,null,{"$f":"COUNTIF(Table2[[#This Row],[7.00]:[15.00]],\"*\")","v":7}]
[null,"Sebastiano P",{"$nulls":9},"Malattia",{"$f":"COUNTIF(Table2[[#This Row],[7.00]:[15.00]],\"*\")","v":0}]
[null,"Teresa A",{"$nulls":5},"cassa","cassa","cassa","cassa",null,{"$f":"COUNTIF(Table2[[#This Row],[7.00]:[15.00]],\"*\")","v":4}]
[]
[null,"MERCOLEDÌ","7.00","8.00","9.00","10.00","11.00","12.00","13.00","14.00","15.00","Malattia?","TOTALE"]
[null,"Katia F","manager","manager","manager","manager","manager","manager","manager","manager","manager",null,{"$f":"COUNTIF(Table3[[#This Row],[7.00]:[15.00]],\"*\")","v":9}]
[null,"Tommaso I",null,"cassa","cassa","cassa","cassa",{"$nulls":5},{"$f":"COUNTIF(Table3[[#This Row],[7.00]:[15.00]],\"*\")","v":4}]
[null,"Giacomo S",null,"front desk","front desk","front desk","front desk ","front desk","front desk","front desk",null,null,{"$f":"COUNTIF(Table3[[#This Row],[7.00]:[15.00]],\"*\")","v":7}]
[null,"Gianni M",null,"front desk","front desk","front desk","front desk ","front desk","front desk","front desk",null,null,{"$f":"COUNTIF(Table3[[#This Row],[7.00]:[15.00]],\"*\")","v":7}]
[null,"Sebastiano P",{"$nulls":9},"Malattia",{"$f":"COUNTIF(Table3[[#This Row],[7.00]:[15.00]],\"*\")","v":0}]
[null,"Teresa A",{"$nulls":5},"cassa","cassa","cassa","cassa",null,{"$f":"COUNTIF(Table3[[#This Row],[7.00]:[15.00]],\"*\")","v":4}]
[]
[null,"GIOVEDÌ","7.00","8.00","9.00","10.00","11.00","12.00","13.00","14.00","15.00","Malattia?","TOTALE"]
[null,"Katia F","manager","manager","manager","manager","manager","manager","manager","manager","manager",null,{"$f":"COUNTIF(Table4[[#This Row],[7.00]:[15.00]],\"*\")","v":9}]
[null,"Tommaso I",null,"cassa","cassa","cassa","cassa",{"$nulls":5},{"$f":"COUNTIF(Table4[[#This Row],[7.00]:[15.00]],\"*\")","v":4}]
[null,"Giacomo S",null,"front desk","front desk","front desk","front desk ","front desk","front desk","front desk",null,null,{"$f":"COUNTIF(Table4[[#This Row],[7.00]:[15.00]],\"*\")","v":7}]
[null,"Gianni M",null,"front desk","front desk","front desk","front desk ","front desk","front desk","front desk",null,null,{"$f":"COUNTIF(Table4[[#This Row],[7.00]:[15.00]],\"*\")","v":7}]
[null,"Sebastiano P",{"$nulls":9},"Malattia",{"$f":"COUNTIF(Table4[[#This Row],[7.00]:[15.00]],\"*\")","v":0}]
[null,"Teresa A",{"$nulls":5},"cassa","cassa","cassa","cassa",null,{"$f":"COUNTIF(Table4[[#This Row],[7.00]:[15.00]],\"*\")","v":4}]
[]
[null,"VENERDÌ","7.00","8.00","9.00","10.00","11.00","12.00","13.00","14.00","15.00","Malattia?","TOTALE"]
[null,"Katia F","manager","manager","manager","manager","manager","manager","manager","manager","manager",null,{"$f":"COUNTIF(Table5[[#This Row],[7.00]:[15.00]],\"*\")","v":9}]
[null,"Tommaso I",null,"cassa","cassa","cassa","cassa",{"$nulls":5},{"$f":"COUNTIF(Table5[[#This Row],[7.00]:[15.00]],\"*\")","v":4}]
[null,"Giacomo S",null,"front desk","front desk","front desk","front desk ","front desk","front desk","front desk",null,null,{"$f":"COUNTIF(Table5[[#This Row],[7.00]:[15.00]],\"*\")","v":7}]
[null,"Gianni M",null,"front desk","front desk","front desk","front desk ","front desk","front desk","front desk",null,null,{"$f":"COUNTIF(Table5[[#This Row],[7.00]:[15.00]],\"*\")","v":7}]
[null,"Sebastiano P",{"$nulls":9},"Malattia",{"$f":"COUNTIF(Table5[[#This Row],[7.00]:[15.00]],\"*\")","v":0}]
[null,"Teresa A",{"$nulls":5},"cassa","cassa","cassa","cassa",null,{"$f":"COUNTIF(Table5[[#This Row],[7.00]:[15.00]],\"*\")","v":4}]
[]
[null,"SABATO","7.00","8.00","9.00","10.00","11.00","12.00","13.00","14.00","15.00","Malattia?","TOTALE"]
[null,"Katia F","manager","manager","manager","manager","manager","manager","manager","manager","manager",null,{"$f":"COUNTIF(Table6[[#This Row],[7.00]:[15.00]],\"*\")","v":9}]
[null,"Tommaso I",null,"cassa","cassa","cassa","cassa",{"$nulls":5},{"$f":"COUNTIF(Table6[[#This Row],[7.00]:[15.00]],\"*\")","v":4}]
[null,"Giacomo S",null,"front desk","front desk","front desk","front desk ","front desk","front desk","front desk",null,null,{"$f":"COUNTIF(Table6[[#This Row],[7.00]:[15.00]],\"*\")","v":7}]
[null,"Gianni M",null,"front desk","front desk","front desk","front desk ","front desk","front desk","front desk",null,null,{"$f":"COUNTIF(Table6[[#This Row],[7.00]:[15.00]],\"*\")","v":7}]
[null,"Sebastiano P",{"$nulls":9},"Malattia",{"$f":"COUNTIF(Table6[[#This Row],[7.00]:[15.00]],\"*\")","v":0}]
[null,"Teresa A",{"$nulls":5},"cassa","cassa","cassa","cassa",null,{"$f":"COUNTIF(Table6[[#This Row],[7.00]:[15.00]],\"*\")","v":4}]
[]
[null,"DOMENICA","7.00","8.00","9.00","10.00","11.00","12.00","13.00","14.00","15.00","Malattia?","TOTALE"]
[null,"Katia F","manager","manager","manager","manager","manager","manager","manager","manager","manager",null,{"$f":"COUNTIF(Table7[[#This Row],[7.00]:[15.00]],\"*\")","v":9}]
[null,"Tommaso I",null,"cassa","cassa","cassa","cassa",{"$nulls":5},{"$f":"COUNTIF(Table7[[#This Row],[7.00]:[15.00]],\"*\")","v":4}]
[null,"Giacomo S",null,"front desk","front desk","front desk","front desk ","front desk","front desk","front desk",null,null,{"$f":"COUNTIF(Table7[[#This Row],[7.00]:[15.00]],\"*\")","v":7}]
[null,"Gianni M",null,"front desk","front desk","front desk","front desk ","front desk","front desk","front desk",null,null,{"$f":"COUNTIF(Table7[[#This Row],[7.00]:[15.00]],\"*\")","v":7}]
[null,"Sebastiano P",{"$nulls":9},"Malattia",{"$f":"COUNTIF(Table7[[#This Row],[7.00]:[15.00]],\"*\")","v":0}]
[null,"Teresa A",{"$nulls":5},"cassa","cassa","cassa","cassa",null,{"$f":"COUNTIF(Table7[[#This Row],[7.00]:[15.00]],\"*\")","v":4}]